bitfinex-derivatives/quotes_ETHF0:USTF0_20250102
["timestamp","ask_amount","ask_price","bid_price","bid_amount"]
[1735783984087,0.29542,3391.6,3391.5,0.29542]
[1735783984292,1.04601443,3391.7,3391.4,1.195]
[1735783984482,1.50751443,3391.5,3391.4,1.49043]
[1735783984885,0.29545,3391.3,3391.1,0.29545]
[1735783985196,1.04601443,3391.3,3390.8,4.4028]
[1735783985495,1.04601443,3391.1,3390.8,4.4028]
[1735783985696,1.04601443,3391.1,3391.0,0.29547]
[1735783985893,1.34146443,3391.3,3391.1,0.29545]
[1735783986194,0.29546,3391.2,3390.9,1.195]
[1735783986395,0.9267,3391.4,3391.2,0.29545]
[1735783986396,0.29545,3391.3,3391.2,0.29545]
[1735783988087,0.4617,3391.4,3390.8,4.4028]
[1735783988293,0.4617,3391.4,3391.3,0.29544]
[1735783988897,0.4615,3391.5,3390.9,0.7387]
[1735783989197,0.4615,3391.5,3391.4,0.29543]
[1735783993299,0.4649,3392.2,3391.8,0.2954]
[1735783993498,3.6383,3392.3,3391.9,1.195]
[1735783993700,3.6383,3392.3,3392.2,0.29536]
[1735783994902,0.29537,3392.1,3392.0,1.195]
[1735783995205,3.6383,3392.3,3392.0,1.195]
[1735783995206,0.4649,3392.2,3392.0,1.195]
[1735783995403,0.4649,3392.2,3392.0,1.49038]
[1735783995604,0.29537,3392.1,3392.0,1.49038]
[1735783996511,0.29537,3392.1,3392.0,1.195]
[1735783996999,0.29537,3392.1,3392.0,1.49038]
[1735783997406,2.84532028,3392.2,3392.1,0.29537]
[1735783997407,0.76027,3392.2,3392.1,0.29537]
[1735783997700,0.29537,3392.1,3392.0,1.49038]
[1735783997904,0.76027,3392.2,3392.1,0.29537]
[1735783998605,0.4649,3392.2,3392.0,1.195]
[1735783998907,0.76027,3392.2,3392.1,0.29537]
[1735784001601,0.4649,3392.2,3392.0,1.195]
[1735784001804,0.29537,3392.1,3392.0,1.49037]
[1735784002004,0.76027,3392.2,3392.1,0.29537]
[1735784003505,0.29537,3392.1,3392.0,1.49038]
[1735784003700,0.29537,3392.1,3391.4,1.15947]
[1735784003701,0.4649,3392.2,3391.8,1.195]
[1735784003911,0.29538,3392.0,3391.9,0.29538]
[1735784004206,0.29538,3392.1,3391.8,1.195]
[1735784004404,0.29539,3391.9,3391.8,0.29539]
[1735784004706,0.29539,3391.9,3391.8,0.2954]
[1735784009003,0.29542,3391.7,3391.6,0.29541]
[1735784009611,1.21682,3391.7,3391.6,0.29541]
[1735784010704,0.29542,3391.6,3391.5,0.29542]
[1735784011810,0.29542,3391.6,3391.4,1.194]
[1735784011811,0.29542,3391.5,3391.4,1.194]
[1735784012012,0.29542,3391.5,3391.4,1.48943]
[1735784013915,3.2078,3391.5,3390.9,3.2078]
[1735784014111,2.38042028,3391.3,3390.9,4.69827]
[1735784014312,0.4343,3391.2,3390.9,3.50327]
[1735784014612,0.29547,3391.0,3390.9,3.50327]
[1735784015016,0.4656,3391.1,3390.9,3.50327]
[1735784015211,0.76107,3391.1,3390.9,3.50327]
[1735784015513,0.76107,3391.1,3390.9,3.2078]
[1735784015715,0.76107,3391.1,3391.0,0.29547]
[1735784016420,0.4656,3391.1,3391.0,0.29547]
[1735784022219,0.76106,3391.1,3391.0,0.29547]
[1735784022418,0.29547,3391.0,3390.9,0.29547]
[1735784023016,0.76106,3391.1,3391.0,0.29547]
[1735784024314,1.51196951,3391.1,3390.7,1.195]
[1735784024621,1.51196951,3391.1,3391.0,0.29547]
[1735784025716,1.80742951,3391.1,3391.0,0.29547]
[1735784026323,1.51196951,3391.1,3391.0,0.29547]
[1735784027118,0.4656,3391.1,3391.0,0.29547]
[1735784027512,0.76106,3391.1,3391.0,0.29547]
[1735784027726,1.80742951,3391.1,3391.0,0.29547]
[1735784029721,1.51196951,3391.1,3391.0,0.29547]
[1735784030120,1.80742951,3391.1,3391.0,0.29547]
[1735784039825,1.51196951,3391.1,3390.7,1.195]
[1735784040029,1.04636951,3390.9,3390.8,0.29549]
[1735784040730,1.04636951,3390.9,3390.7,1.195]
[1735784040925,0.2955,3390.7,3390.6,0.2955]
[1735784041236,1.34186951,3390.7,3390.6,0.2955]
[1735784042232,1.04636951,3390.7,3390.6,0.2955]
[1735784044832,1.34185951,3390.7,3390.6,0.2955]
[1735784046934,1.04636951,3390.7,3390.6,0.2955]
[1735784047335,1.94196951,3390.7,3390.6,0.2955]
[1735784047931,2.23745951,3390.7,3390.6,0.2955]
[1735784048131,5.14976951,3390.7,3389.9,1.194]
[1735784048434,0.29554,3390.2,3390.1,0.29554]
[1735784048638,0.29551,3390.5,3390.0,0.29555]
[1735784048839,0.4506,3390.1,3390.0,0.29555]
[1735784049432,1.3397,3390.1,3390.0,0.29555]
[1735784049935,2.38606951,3390.1,3390.0,0.29555]
[1735784051633,1.49696951,3390.1,3390.0,0.29555]
[1735784053528,1.95906951,3390.1,3390.0,0.29555]
[1735784053730,2.25461951,3390.1,3390.0,0.29555]
[1735784054037,1.95906951,3390.1,3390.0,0.29555]
[1735784055334,2.25461951,3390.1,3390.0,0.29555]
[1735784055533,2.25461951,3390.1,3389.9,0.29556]
[1735784055735,2.25461951,3390.1,3390.0,0.29556]
[1735784055931,1.95906951,3390.1,3389.8,1.194]
[1735784056137,1.34192951,3389.9,3389.8,1.194]
[1735784057641,0.29557,3389.8,3389.7,0.29558]
[1735784058146,1.04636951,3389.9,3389.6,1.195]
[1735784058344,1.50386951,3389.7,3389.6,1.49058]
[1735784060347,3.2078,3390.3,3389.6,2.24136951]
[1735784060651,4.25416951,3390.3,3390.2,0.29554]
[1735784060945,1.04636951,3390.3,3390.2,0.29554]
[1735784061646,0.29554,3390.2,3390.1,0.29554]
[1735784061844,0.76074,3390.2,3390.1,0.29554]
[1735784062052,0.4652,3390.2,3389.9,0.8897]
[1735784062244,0.29555,3390.1,3389.9,0.29556]
[1735784062951,0.29555,3390.1,3390.0,0.29556]
[1735784064249,0.9031,3390.2,3389.6,1.195]
[1735784064554,0.29556,3389.9,3389.8,0.29557]
[1735784064955,0.29556,3390.0,3389.9,0.29556]
[1735784065856,0.9031,3390.2,3389.6,1.195]
[1735784066058,0.29555,3390.1,3389.9,0.29556]
[1735784066355,0.29555,3390.1,3390.0,0.29556]
[1735784066554,0.29555,3390.1,3389.9,0.29556]
[1735784066755,0.29556,3390.0,3389.9,0.29556]
[1735784067152,0.29556,3390.0,3389.6,1.195]
[1735784067153,2.38194671,3390.3,3389.6,1.195]
[1735784067355,0.75365,3390.1,3390.0,0.29555]
[1735784070755,0.4581,3390.1,3389.6,1.195]
[1735784070954,0.29556,3390.0,3389.9,0.29556]
[1735784071450,0.75365,3390.1,3390.0,0.29556]
[1735784072159,0.29556,3390.0,3389.6,1.195]
[1735784072659,0.4581,3390.1,3389.6,1.195]
[1735784072846,0.75365,3390.1,3390.0,0.29556]
[1735784073049,0.4581,3390.1,3389.6,1.195]
[1735784073249,0.29556,3390.0,3389.9,0.29556]
[1735784075868,0.29556,3389.9,3389.8,1.194]
[1735784078155,0.29556,3389.9,3389.8,1.48957]
[1735784079059,0.29556,3389.9,3389.8,1.194]
[1735784079265,0.29556,3389.9,3389.8,1.48957]
[1735784081259,0.73026,3389.9,3389.8,1.48957]
[1735784081760,0.73026,3389.9,3389.8,1.194]
[1735784081960,0.73026,3389.9,3389.8,1.48957]
[1735784082355,1.77741604,3389.9,3389.8,1.48957]
[1735784084155,3.2078,3390.0,3389.9,0.29556]
[1735784084361,3.2078,3390.0,3389.9,0.74386]
[1735784084568,1.48865604,3390.4,3390.3,0.29553]
[1735784086258,0.4415,3390.4,3390.3,0.29553]
[1735784087764,0.73702,3390.4,3390.3,1.194]
[1735784091775,0.29557,3389.9,3389.8,1.194]
[1735784092272,0.29557,3389.9,3389.8,1.48957]
[1735784093565,0.29557,3389.9,3389.8,1.194]
[1735784093966,3.2078,3390.1,3389.8,1.194]
[1735784094167,0.74164,3390.2,3389.8,1.194]
[1735784094367,0.74164,3390.2,3390.1,0.29555]
[1735784095171,0.74164,3390.2,3390.0,0.29555]
[1735784095473,0.4461,3390.2,3389.8,1.194]
[1735784095674,0.29556,3390.0,3389.9,0.29556]
[1735784095874,0.4461,3390.2,3389.8,1.48957]
[1735784096170,1.19866,3389.9,3389.8,1.48957]
[1735784097575,1.19866,3389.9,3389.8,1.194]
[1735784098077,0.9031,3389.9,3389.8,1.194]
[1735784098371,0.9031,3389.9,3389.8,1.48957]
[1735784098774,1.19866,3389.9,3389.8,1.48957]
[1735784099277,0.9031,3389.9,3389.8,1.48957]
[1735784100567,1.19866,3389.9,3389.8,1.48957]
[1735784101665,1.19866,3389.9,3389.8,1.194]
[1735784102072,0.29559,3389.7,3389.5,0.29559]
[1735784102275,0.4426,3389.6,3389.5,0.29559]
[1735784103075,0.4426,3389.6,3389.4,1.194]
[1735784103276,0.4426,3389.6,3389.4,1.48961]
[1735784103277,0.4585,3389.5,3389.4,1.48961]
[1735784106973,0.4585,3389.5,3389.4,0.29561]
[1735784108882,0.4619,3389.9,3389.3,4.4018]
[1735784109180,3.2078,3390.1,3390.0,0.29556]
[1735784109382,3.2078,3390.1,3390.0,1.48956]
[1735784109681,3.50335,3390.1,3390.0,1.194]
[1735784111978,3.50335,3390.1,3390.0,1.48956]
[1735784112182,3.2078,3390.1,3390.0,1.48956]
[1735784113577,3.50335,3390.1,3390.0,1.48956]
[1735784113774,3.2078,3390.1,3390.0,1.48956]
[1735784115386,0.74683,3390.3,3390.2,0.29554]
[1735784115677,0.86897115,3390.3,3390.0,1.194]
[1735784115985,0.29554,3390.2,3390.1,0.29555]
[1735784116381,0.86897115,3390.3,3390.0,1.194]
[1735784116685,0.74683,3390.3,3390.2,0.29554]
[1735784117285,3.2078,3390.6,3390.5,0.29551]
[1735784117474,0.29552,3390.5,3390.4,0.29552]
[1735784117882,0.76022,3390.5,3390.4,0.29552]
[1735784118183,0.4647,3390.5,3390.4,0.29552]
[1735784118488,0.76021,3390.5,3390.4,0.29552]
[1735784118981,0.29553,3390.4,3390.3,0.29552]
[1735784119185,0.29555,3390.1,3390.0,1.48955]
[1735784119684,3.2078,3390.2,3390.0,1.194]
[1735784119987,0.29555,3390.1,3390.0,1.194]
[1735784120198,0.71336724,3390.1,3390.0,1.194]
[1735784122089,0.29556,3390.0,3389.7,1.194]
[1735784122386,0.41781724,3390.1,3390.0,0.29556]
[1735784122590,0.41781724,3390.2,3390.1,0.29555]
[1735784122788,0.29554,3390.2,3390.1,0.29555]
[1735784123586,0.85431724,3390.3,3390.0,1.48955]
[1735784123587,0.29555,3390.1,3390.0,1.48955]
[1735784123787,0.29554,3390.2,3390.1,0.29555]
[1735784124684,0.29555,3390.1,3390.0,1.194]
[1735784124892,0.29556,3390.0,3389.8,1.194]
[1735784125188,0.41781724,3390.1,3389.8,1.194]
[1735784125389,0.41781724,3390.1,3389.8,1.48957]
[1735784125390,0.465,3389.9,3389.8,1.48957]
[1735784132298,3.50334,3390.2,3389.8,1.194]
[1735784132496,0.29555,3390.1,3390.0,0.29555]
[1735784134097,0.4206,3390.2,3389.8,1.194]
[1735784134598,0.29556,3389.9,3389.8,1.194]
[1735784135498,0.29559,3389.6,3389.5,0.2956]
[1735784135798,0.29559,3389.6,3389.5,1.194]
[1735784135998,0.29559,3389.6,3389.4,1.4896]
[1735784136197,0.29561,3389.4,3389.3,0.29561]
[1735784136398,0.7492,3389.5,3389.3,0.29561]
[1735784136701,0.29561,3389.4,3389.3,0.29561]
[1735784137198,3.13070191,3389.5,3389.1,1.194]
[1735784137389,0.9081,3389.3,3389.2,0.29563]
[1735784137592,0.29563,3389.2,3389.0,1.194]
[1735784137798,1.20372,3389.3,3389.1,0.29563]
[1735784138595,0.9081,3389.3,3389.2,0.29563]
[1735784139395,0.4575,3389.3,3389.2,0.29563]
[1735784140499,0.4575,3389.3,3389.2,0.73533]
[1735784141597,0.75312,3389.3,3389.1,0.29563]
[1735784141790,0.75312,3389.3,3389.2,0.29563]
[1735784142502,0.75312,3389.3,3389.1,0.29563]
[1735784142993,0.75312,3389.3,3389.2,0.29563]
[1735784143202,0.4575,3389.3,3389.2,0.29563]
[1735784144202,0.75312,3389.3,3389.2,0.29563]
[1735784144592,0.75312,3389.3,3388.9,3.2078]
[1735784144796,0.29563,3389.2,3389.1,0.29563]
[1735784145001,0.75312,3389.3,3389.1,0.29563]
[1735784145192,0.4575,3389.3,3389.0,1.193]
[1735784145394,0.4575,3389.3,3389.0,0.29564]
[1735784145395,0.29563,3389.1,3389.0,0.29564]
[1735784145590,0.4575,3389.3,3388.8,1.6327]
[1735784145795,0.29563,3389.2,3389.0,0.29564]
[1735784146296,2.38150191,3389.2,3388.8,0.29565]
[1735784146504,0.29566,3388.8,3388.7,1.193]
[1735784147006,0.72106,3388.8,3388.7,1.193]
[1735784147498,0.4254,3388.8,3388.5,3.2078]
[1735784147697,0.29568,3388.6,3388.5,3.50349]
[1735784149404,0.29568,3388.6,3388.5,3.2078]
[1735784149702,0.29568,3388.6,3388.0,4.69653]
[1735784149703,0.29569,3388.5,3388.0,4.69653]
[1735784149906,2.38150191,3388.6,3388.0,4.4008]
[1735784149907,0.29572,3388.1,3388.0,4.4008]
[1735784150211,0.29572,3388.1,3388.0,4.69653]
[1735784150406,0.76222,3388.1,3388.0,4.69653]
[1735784151104,0.4665,3388.1,3388.0,4.69653]
[1735784154001,0.9234,3388.1,3388.0,4.69653]
[1735784155605,0.4665,3388.1,3388.0,4.69653]
[1735784156903,0.76222,3388.1,3388.0,4.69653]
[1735784157908,0.76222,3388.1,3388.0,1.193]
[1735784161006,0.4665,3388.1,3387.6,3.2078]
[1735784161207,0.29576,3387.7,3387.6,3.2078]
[1735784161505,0.29576,3387.7,3387.6,3.50356]
[1735784161906,0.29318189,3387.7,3387.6,3.50356]
[1735784162105,0.9055,3388.0,3387.6,3.2078]
[1735784162304,0.29574,3387.9,3387.8,0.29575]
[1735784163011,0.29575,3387.8,3387.7,0.29575]
[1735784168716,0.29576,3387.7,3387.6,3.50356]
[1735784169716,0.9055,3388.0,3387.6,3.2078]
[1735784169919,0.29576,3387.8,3387.7,0.29575]
[1735784170215,0.29576,3387.7,3387.6,3.50356]
[1735784171516,0.29576,3387.7,3387.6,3.2078]
[1735784172518,0.29576,3387.7,3387.6,3.50356]
[1735784172724,0.4415,3388.0,3387.6,3.2078]
[1735784173018,0.4665,3388.1,3388.0,0.29573]
[1735784174215,0.9195,3388.6,3388.5,0.29569]
[1735784174417,0.4568,3388.6,3388.5,0.29569]
[1735784174724,0.4568,3388.6,3388.1,2.36959]
[1735784174725,0.29569,3388.5,3388.4,0.29569]
[1735784175224,0.9195,3388.6,3388.4,0.29569]
[1735784175417,1.21518,3388.6,3388.4,0.29569]
[1735784175617,1.21518,3388.6,3388.2,0.4254]
[1735784175618,1.21518,3388.6,3388.3,0.2957]
[1735784175916,1.21518,3388.6,3388.4,0.29569]
[1735784176321,0.9195,3388.6,3388.4,0.29569]
[1735784176516,0.9195,3388.6,3388.1,1.193]
[1735784176517,3.30100191,3388.6,3388.1,1.193]
[1735784176722,0.29571,3388.2,3388.1,1.48872]
[1735784177026,0.29571,3388.2,3388.1,1.193]
[1735784177218,3.30100191,3388.6,3387.8,0.8721]
[1735784177219,0.73922,3388.5,3387.8,0.72744]
[1735784177424,0.9085,3388.1,3387.7,0.29575]
[1735784177622,2.84390191,3388.0,3387.6,3.2078]
[1735784177819,0.29576,3387.7,3387.6,3.2078]
[1735784178621,6.79103191,3388.0,3387.3,1.193]
[1735784178832,2.38150191,3387.7,3387.3,1.193]
[1735784179023,0.29578,3387.4,3387.3,1.193]
[1735784179220,0.29578,3387.4,3387.3,1.48879]
[1735784179421,0.29578,3387.5,3387.3,1.48879]
[1735784179729,0.29578,3387.5,3387.4,0.29578]
[1735784180821,0.29578,3387.5,3387.3,1.48879]
[1735784182027,0.29578,3387.5,3387.4,0.29578]
[1735784183723,0.72548,3387.5,3387.4,0.29578]
[1735784184028,0.4297,3387.5,3387.4,0.29578]
[1735784185627,0.72548,3387.5,3387.3,0.29579]
[1735784185832,0.4506,3387.4,3387.3,0.29579]
[1735784186622,0.4506,3387.4,3387.2,0.2958]
[1735784186822,0.29579,3387.3,3387.1,1.48881]
[1735784187132,0.29579,3387.3,3387.2,0.2958]
[1735784187430,0.4506,3387.4,3387.2,0.2958]
[1735784187431,0.74639,3387.4,3387.2,0.2958]
[1735784187831,0.29579,3387.3,3387.2,0.2958]
[1735784188034,0.4506,3387.4,3387.2,0.2958]
[1735784188035,0.74639,3387.4,3387.2,0.2958]
[1735784188223,0.74639,3387.4,3387.1,1.193]
[1735784188224,0.4506,3387.4,3387.1,1.193]
[1735784188429,0.4506,3387.4,3386.8,0.8868]
[1735784188430,0.29582,3387.0,3386.8,1.193]
[1735784188624,0.29582,3387.0,3386.9,0.29583]
[1735784189325,0.29582,3387.0,3386.7,4.4008]
[1735784189326,2.83210191,3387.4,3386.7,4.4008]
[1735784189532,0.29583,3386.8,3386.7,3.2078]
[1735784189734,0.29583,3386.8,3386.3,0.8927]
[1735784189932,2.38150191,3386.5,3386.3,0.4412]
[1735784190131,0.29587,3386.4,3386.3,0.4412]
[1735784190438,2.38150191,3386.5,3386.1,1.193]
[1735784190735,0.29587,3386.4,3386.2,0.29588]
[1735784190930,0.74467,3386.4,3386.2,0.29588]
[1735784191135,0.4488,3386.4,3386.3,0.29588]
[1735784191537,0.74467,3386.4,3386.3,0.29588]
[1735784192534,0.29588,3386.3,3386.2,0.29589]
[1735784192732,0.4488,3386.4,3385.9,0.7371]
[1735784192934,0.2959,3386.1,3385.9,1.4899]
[1735784193135,0.4567,3386.0,3385.9,0.2959]
[1735784193432,0.4567,3386.0,3385.6,4.1031]
[1735784193433,0.8953,3386.0,3385.8,1.48992]
[1735784193840,1.19121,3386.0,3385.8,1.48992]
[1735784194040,1.19121,3386.0,3385.9,0.29591]
[1735784194342,0.8953,3386.0,3385.9,0.29591]
[1735784194833,1.1912,3386.0,3385.9,0.29591]
[1735784195036,1.1912,3386.0,3385.6,4.8416]
[1735784195237,0.29592,3385.9,3385.8,0.29592]
[1735784195549,1.19121,3386.0,3385.8,0.29592]
[1735784195939,0.8953,3386.0,3385.6,1.194]
[1735784196247,0.29596,3385.4,3385.3,0.29596]
[1735784196435,0.29596,3385.4,3385.2,1.6532]
[1735784196640,2.38150191,3385.5,3384.8,3.2078]
[1735784196841,2.67749191,3385.1,3384.9,0.296]
[1735784197041,0.436,3385.0,3384.8,3.2078]
[1735784197241,0.29602,3384.7,3384.6,4.64479051]
[1735784197439,0.29602,3384.7,3384.5,0.29603]
[1735784197851,0.74252,3384.7,3384.5,0.29603]
[1735784198452,0.4465,3384.7,3384.4,3.2078]
[1735784198649,0.74252,3384.7,3384.4,3.50384]
[1735784198947,0.74252,3384.7,3384.4,3.2078]
[1735784198948,0.4465,3384.7,3384.4,3.2078]
[1735784199553,0.4465,3384.7,3384.5,0.29604]
[1735784199554,0.74252,3384.7,3384.5,0.29604]
[1735784199757,0.4465,3384.7,3384.4,3.2078]
[1735784199950,0.4465,3384.7,3384.6,0.29603]
[1735784200756,2.38150191,3384.8,3384.7,0.29602]
[1735784201049,0.73199,3385.0,3384.5,0.29604]
[1735784201249,0.436,3385.0,3384.9,0.296]
[1735784201555,2.67746191,3385.4,3384.5,0.7401]
[1735784201755,2.67746191,3385.4,3385.2,0.29597]
[1735784202552,0.29597,3385.3,3385.1,0.29598]
[1735784202851,0.29599,3385.1,3384.9,0.29599]
[1735784203254,0.8911,3385.2,3384.9,0.29599]
[1735784203255,1.18708,3385.2,3384.9,0.29599]
[1735784203555,1.18708,3385.2,3384.7,0.4388]
[1735784203556,0.8911,3385.2,3384.8,0.296]
[1735784203755,0.29599,3385.0,3384.8,0.296]
[1735784203956,2.38150191,3385.1,3384.4,3.2078]
[1735784204148,0.29603,3384.6,3384.5,1.194]
[1735784205353,0.29605,3384.4,3384.2,0.29605]
[1735784206761,0.863,3384.5,3384.0,3.2078]
[1735784206962,0.29605,3384.4,3384.0,3.2078]
[1735784207159,0.863,3384.5,3384.2,0.29606]
[1735784207458,0.29605,3384.4,3384.2,0.29606]
[1735784207857,1.15904,3384.5,3384.3,0.29605]
[1735784210066,2.38150191,3384.4,3384.3,0.29605]
[1735784212169,2.67754191,3384.4,3384.3,0.29605]
[1735784212668,0.29606,3384.3,3384.0,4.4018]
[1735784212869,3.12495191,3384.4,3384.0,4.4018]
[1735784213370,3.12495191,3384.4,3384.2,0.29606]
[1735784214270,0.29605,3384.3,3384.2,0.29606]
[1735784214671,3.12495191,3384.4,3384.3,0.29605]
[1735784216266,0.863,3384.5,3384.0,3.2078]
[1735784216470,2.67752191,3384.7,3384.6,0.29603]
[1735784216775,0.29603,3384.6,3384.4,0.29604]
[1735784217073,0.29604,3384.5,3384.4,0.29604]
[1735784217467,0.4599,3384.6,3384.0,3.2078]
[1735784217671,0.29607,3384.2,3384.1,0.29607]
[1735784217866,2.67756191,3384.3,3384.2,0.29606]
[1735784219480,2.38150191,3384.3,3384.2,0.29606]
[1735784220269,2.67755191,3384.3,3384.2,0.29606]
[1735784220469,2.38150191,3384.3,3384.0,3.2078]
[1735784220773,0.29607,3384.1,3384.0,3.2078]
[1735784221169,0.73827,3384.1,3384.0,3.2078]
[1735784222873,0.73827,3384.1,3384.0,3.50388]
[1735784223174,0.73827,3384.1,3384.0,0.29608]
[1735784223478,0.4422,3384.1,3384.0,0.29608]
[1735784224273,0.73827,3384.1,3384.0,0.29608]
[1735784224478,0.4422,3384.1,3384.0,0.29608]
[1735784224875,0.73827,3384.1,3384.0,0.29608]
[1735784225670,0.4422,3384.1,3384.0,0.29608]
[1735784225869,3.2078,3384.6,3383.8,0.4644]
[1735784225870,5.58930191,3384.6,3383.8,0.4644]
[1735784226078,0.71459494,3384.5,3384.4,0.29604]
[1735784226775,2.84430191,3384.6,3384.4,0.29604]
[1735784227077,0.29604,3384.5,3384.4,0.29604]
[1735784228078,2.84430191,3384.6,3384.0,3.6526]
[1735784228377,3.14033191,3384.6,3384.5,0.29604]
[1735784228778,2.84430191,3384.6,3384.0,3.6526]
[1735784229076,0.29606,3384.3,3384.2,0.29606]
[1735784229580,2.38150191,3384.3,3384.0,0.29607]
[1735784229780,0.29607,3384.1,3384.0,0.29607]
[1735784230779,0.9185,3384.2,3383.9,0.29608]
[1735784231079,0.75238,3384.0,3383.9,0.29608]
[1735784231276,0.4563,3384.0,3383.9,0.29608]
[1735784233479,0.4563,3384.0,3383.5,3.6444]
[1735784233683,0.75238,3384.0,3383.9,0.29609]
[1735784235085,0.75238,3384.0,3383.8,0.29609]
[1735784235291,3.13388191,3384.0,3383.8,0.29609]
[1735784236186,3.13388191,3384.0,3383.9,0.29609]
[1735784236387,2.83780191,3384.0,3383.9,0.29609]
[1735784237294,0.4563,3384.0,3383.9,0.29609]
[1735784238096,0.45419568,3384.0,3383.9,0.29609]
[1735784238398,0.41887954,3384.2,3384.1,0.29607]
[1735784238594,0.84207954,3384.5,3384.4,0.29604]
[1735784238993,0.4232,3384.5,3384.4,0.29604]
[1735784239297,0.29601,3384.8,3384.2,0.74016]
[1735784239493,0.4312,3384.8,3384.1,0.4352]
[1735784239694,0.29602,3384.7,3384.6,0.29602]
[1735784240592,0.41887954,3384.8,3384.7,0.29602]
[1735784240798,0.72721,3384.8,3384.7,0.29602]
[1735784240996,0.4312,3384.8,3384.7,0.29602]
[1735784241195,0.85007954,3384.8,3384.7,0.29602]
[1735784241597,0.41887954,3384.9,3384.4,2.37112]
[1735784241798,2.38150191,3385.2,3384.7,3.2078]
[1735784242001,2.80038145,3385.2,3385.1,0.29598]
[1735784242998,1.29377954,3385.3,3384.8,0.4488]
[1735784243190,3.6605,3385.4,3384.8,0.4488]
[1735784243191,2.67742191,3385.8,3384.9,0.74001]
[1735784243394,2.67742191,3385.8,3385.1,0.73995]
[1735784243597,2.67742191,3385.8,3385.2,1.194]
[1735784243901,2.67742191,3385.8,3385.7,0.29593]
[1735784244798,2.38150191,3385.8,3385.3,0.29596]
[1735784245102,2.38150191,3385.4,3385.3,0.29596]
[1735784245600,3.71550191,3385.4,3385.3,0.29596]
[1735784245901,4.43085498,3385.4,3385.2,1.48997]
[1735784246099,4.43085498,3385.4,3385.1,0.29598]
[1735784246100,0.29598,3385.2,3385.1,0.29598]
[1735784246300,0.41939307,3385.3,3385.1,0.29598]
[1735784246301,0.71536307,3385.3,3385.1,0.29597]
[1735784246501,0.41939307,3385.3,3385.2,0.29597]
[1735784247405,1.334,3385.4,3385.3,0.29597]
[1735784248704,3.71550191,3385.4,3385.3,0.29597]
[1735784249004,4.13411394,3385.4,3385.3,0.29597]
[1735784249204,3.71550191,3385.4,3385.3,0.29597]
[1735784249703,4.13405321,3385.4,3385.3,0.29597]
[1735784249905,3.71550191,3385.4,3385.3,0.29597]
[1735784250809,0.29597,3385.3,3385.2,0.29597]
[1735784251103,0.29597,3385.3,3385.1,0.29598]
[1735784251302,3.71550191,3385.4,3384.7,4.8589]
[1735784251600,0.29599,3385.1,3384.9,0.296]
[1735784251810,0.29599,3385.1,3385.0,0.29599]
[1735784252804,0.29599,3385.0,3384.9,1.193]
[1735784253003,2.67749191,3385.1,3385.0,0.29599]
[1735784253199,2.67749191,3385.1,3384.9,1.489]
[1735784254109,2.67749191,3385.1,3384.9,1.193]
[1735784254307,2.67749191,3385.1,3385.0,0.29599]
[1735784254507,2.38150191,3385.1,3384.9,1.489]
[1735784254707,2.67749191,3385.1,3384.9,1.489]
[1735784255011,2.67749191,3385.1,3384.9,0.296]
[1735784255210,2.67749191,3385.1,3385.0,0.29599]
[1735784256208,2.38150191,3385.1,3385.0,0.29599]
[1735784256710,2.67749191,3385.1,3384.8,1.193]
[1735784257010,2.38150191,3385.1,3385.0,0.29599]
[1735784257917,2.67749191,3385.1,3384.8,1.193]
[1735784258218,0.29601,3384.8,3384.7,3.2078]
[1735784258408,2.67751191,3384.8,3384.6,1.48902]
[1735784258609,1.3183,3384.7,3384.6,1.48902]
[1735784258807,1.73709587,3384.7,3384.6,1.48902]
[1735784259105,0.29604,3384.5,3384.3,3.50385]
[1735784259305,0.29604,3384.5,3384.3,3.2078]
[1735784259517,0.29604,3384.5,3384.4,0.29604]
[1735784259819,0.29604,3384.4,3384.3,3.2078]
[1735784260311,0.29604,3384.4,3384.3,3.50385]
[1735784260510,0.29604,3384.4,3384.3,3.2078]
[1735784261110,0.29604,3384.4,3384.3,3.50385]
[1735784261315,2.67754191,3384.5,3384.3,3.50385]
[1735784261612,0.29604,3384.4,3384.3,3.2078]
[1735784261812,0.29604,3384.4,3384.1,1.194]
[1735784262116,2.38150191,3384.5,3384.2,0.29606]
[1735784262306,2.38150191,3384.5,3384.1,0.29607]
[1735784262307,0.29606,3384.2,3384.1,0.29607]
[1735784262506,2.38150191,3384.2,3383.9,1.193]
[1735784262711,1.3126,3384.1,3384.0,0.29608]
[1735784263612,2.02788537,3384.1,3384.0,0.29608]
[1735784264909,2.02788537,3384.1,3383.9,1.48908]
[1735784265116,0.29608,3384.0,3383.9,1.48908]
[1735784266215,2.02789537,3384.1,3383.9,1.48908]
[1735784266412,0.29608,3384.0,3383.9,1.193]
[1735784266612,0.29608,3384.0,3383.8,0.2961]
[1735784266913,0.29608,3384.0,3383.9,0.29609]
[1735784267309,0.29608,3384.0,3383.8,0.29609]
[1735784267515,0.2961,3383.8,3383.7,3.2078]
[1735784267816,2.67759191,3383.9,3383.7,4.4008]
[1735784268313,2.38150191,3383.9,3383.7,4.4008]
[1735784268513,2.38150191,3383.9,3383.8,0.2961]
[1735784268704,2.67759191,3383.9,3383.8,0.2961]
[1735784269915,4.5204,3384.1,3384.0,0.29608]
[1735784270116,1.3126,3384.1,3383.7,4.4008]
[1735784270415,1.60868,3384.1,3384.0,0.29608]
[1735784271419,1.3126,3384.1,3383.9,0.29609]
[1735784271613,1.60867,3384.1,3383.9,0.29609]